[Event "15th Paleochora Open 2022"]
[Site "Paleochora"]
[Date "2022.07.20"]
[Round "5.12"]
[White "Hristodoulou, Panagiotis"]
[Black "Vlachos, Anatole"]
[Result "1-0"]
[ECO "C68"]
[WhiteElo "2330"]
[BlackElo "2433"]
[Annotator "TA"]
[PlyCount "118"]
[EventDate "2022.07.17"]
[EventType "swiss"]
[EventCountry "GRE"]
[SourceTitle "playchess.com"]
[Source "ChessBase"]
[SourceQuality "1"]
[TimeControl "40/5400+30:900+30"]

{[%evp 21,118,0,16,0,22,21,23,0,0,0,0,0,0,0,0,0,0,-9,-11,-21,-16,-16,-28,-80,-7,-12,0,0,0,0,14,9,18,10,30,26,29,36,79,79,103,93,90,30,36,35,36,43,100,110,118,127,151,144,136,136,159,136,164,166,329,327,301,322,312,292,345,347,339,338,315,295,838,780,810,759,2432,2304,2147,1581,1025,1019,1011,940,1605,584,904,889,9252,6650,5638,4706,6043,4618,29979,29980,29988,29989,29989]} 1. e4 e5 2. Nf3 Nc6 3. Bb5 a6 4. Bxc6 dxc6 5. Nc3 f6 6. d4 exd4 7. Nxd4 c5 8. Nde2 Qxd1+ 9. Nxd1 Bd7 10. Bf4 O-O-O 11. Ne3 Bc6 12. f3 {C68: Ruy Lopez: Exchange Variation, sidelines.} Ne7 (12... g5 $5 {[%cal Rg5f4]} 13. Bg3 Ne7 $11) 13. h4 g6 14. Rd1 {White has an edge.} Rxd1+ 15. Kxd1 {[#]} f5 $146 ({Predecessor:} 15... h5 16. Kc1 Rg8 17. Nd1 b6 18. Nf2 Be8 19. Nh3 Bd7 20. Nc3 Bg7 21. Bd2 f5 22. Ng5 fxe4 23. Ncxe4 {½-½ (31) Darban,M (2282)-Baltag,I (2398) Konya 2019}) 16. exf5 Nxf5 17. Nxf5 gxf5 18. Ng3 Rg8 19. Rh2 Bd7 20. Nh5 Rg6 21. Be5 Re6 22. Bc3 (22. Bf4 $11 {remains equal.}) 22... Be7 ({Better is} 22... Bd6 $17 23. g3 Bc6) 23. Nf4 $11 Rh6 24. g3 Bc6 25. Ke2 Bd6 26. Ke3 Be7 27. Be5 Bd7 28. c4 b5 29. b3 c6 30. Rc2 {White is more active.} Kb7 31. Nd3 Kb6 32. Kf4 (32. Kf2 $16) 32... Rg6 33. Rd2 {[%cal Od3c5]} Bf8 {[%cal Rf8h6]} 34. Ke3 {[%cal Og3g4]} Bh6+ {White now steadily converts the win.} (34... Re6 $14) 35. Bf4 $16 {And now Bxh6 would win.} Re6+ 36. Kf2 Bxf4 37. Nxf4 {[%mdl 4096] Endgame KRB-KRN} Re7 38. Rd6 {aiming for Nd5+.} Ka5 39. Nd3 $1 bxc4 40. bxc4 ({Don't take} 40. Nxc5 $6 Be8 $14) 40... Be6 $2 (40... Be8 {might work better.} 41. Rf6 (41. Nxc5 Kb4 $14) 41... Ka4) 41. Rxc6 $18 Bxc4 42. Rxc5+ Bb5 43. Rxf5 Rd7 44. a4 Rxd3 45. axb5 axb5 {[#] KR-KR} 46. Rf7 {Against Rd7} b4 $2 (46... h6 47. g4 Rd8) 47. Rxh7 Ka6 48. Rc7 b3 49. Rc1 Kb5 50. h5 Rd2+ 51. Ke3 Rh2 52. g4 b2 53. Rc8 (53. Rb1 $142 {Black must now prevent Kf4.} Kc4 54. h6) 53... Rc2 54. Rb8+ ({And not} 54. Rxc2 b1=Q 55. Re2 Qf1 $17) 54... Ka4 55. Kd3 Rf2 56. Ke4 Rc2 57. h6 Rc4+ {[#]} 58. Kd3 $1 Rb4 59. Rxb4+ Kxb4 {Weighted Error Value: White=0.06 (flawless) /Black=0.22 (precise)} 1-0

[Event "15th Paleochora Open 2022"]
[Site "Paleochora"]
[Date "2022.07.20"]
[Round "5.13"]
[White "Barp, Alberto"]
[Black "Georgiadis, Anastasios"]
[Result "1-0"]
[ECO "E05"]
[WhiteElo "2423"]
[BlackElo "1701"]
[Annotator "TA"]
[PlyCount "149"]
[EventDate "2022.07.17"]
[EventType "swiss"]
[EventCountry "GRE"]
[SourceTitle "playchess.com"]
[Source "ChessBase"]
[SourceQuality "1"]
[TimeControl "40/5400+30:900+30"]

{[%evp 18,149,17,16,24,-9,13,-12,-13,-13,-13,-14,-13,-11,0,-16,-20,-13,-18,-19,-9,-12,-8,-13,0,0,0,-12,0,0,0,-10,0,-10,-12,-13,-8,-12,19,15,15,0,0,7,7,0,7,0,29,22,29,29,29,35,101,83,100,112,118,120,110,101,104,118,117,83,126,98,131,135,165,156,106,-25,-26,-52,-52,-61,-35,-143,0,0,0,0,0,0,0,0,0,0,58,17,35,8,82,62,115,107,93,100,153,147,371,411,408,389,404,395,433,412,381,370,1501,1507,1465,1497,1332,1316,1177,712,484,430,12236,5347,12545,11573,4598,3891,29974,29975,29975,29976,5627,5587]} 1. d4 Nf6 2. c4 e6 3. g3 d5 4. Nf3 Be7 5. Bg2 O-O 6. O-O dxc4 7. Qc2 a6 8. a4 Bd7 9. Qxc4 Bc6 10. Bf4 Bd6 {E05: Open Catalan: 5 Nf3 Be7.} 11. Nc3 Nbd7 {[#]} 12. Rac1 $146 ({Predecessor:} 12. Rfd1 Bxf4 13. gxf4 Nb6 14. Qd3 a5 15. Ne5 Bxg2 16. Kxg2 Nbd5 17. Qf3 c6 18. e3 {½-½ (30) Giri,A (2780)-Radjabov,T (2765) Bucharest 2021}) 12... Nb6 {The position is equal.} 13. Qb3 Bxf4 14. gxf4 a5 15. e3 Nfd5 16. Nb5 Nb4 17. Ne5 {[%cal Re5c6]} Bxg2 18. Kxg2 c6 19. Nc3 {[%cal Bb5c3,Bc3e4,Be4c5][%mdl 32]} N6d5 20. Ne4 Qh4 {[%cal Og7g5]} 21. Qd1 f6 22. Nf3 Qg4+ 23. Kh1 Qg6 24. Nc5 {[%csl LRb7,LRe6]} Qf7 25. Rg1 b6 26. Ne4 Qb7 27. Qe2 Qa6 28. Qxa6 Rxa6 29. Rgd1 Ra7 30. Kg2 {[%cal Bh1g2,Bg2f1,Bf1e2,Be2f3][%mdl 32]} Rd7 31. Kf1 Rff7 32. Ke2 Kf8 33. Nfd2 h6 34. h4 Rfe7 35. Nc4 Ke8 (35... Re8 $14) 36. Kf3 Kd8 37. Ng3 Rb7 38. f5 Nc7 39. e4 Rd7 40. Rd2 Ke8 41. Rcd1 Kd8 42. Ke3 Kc8 43. f4 Kb8 44. fxe6 Nxe6 45. f5 {[#]} (45. Kf3 $16) 45... Nxd4 $1 $11 46. Na3 (46. Ne2 c5) 46... c5 47. Ne2 {[%cal Re2d4]} Nbc6 (47... Ndc2+ $5 48. Nxc2 Nxc2+ 49. Kf3 Kc8 $15) 48. Nb5 {[#]} (48. h5 $15) 48... Nc2+ $1 {[%mdl 512]} 49. Kf2 Rxd2 50. Rxd2 N2d4 51. Nexd4 Nxd4 52. Nxd4 cxd4 53. Rxd4 {[%mdl 4096] Endgame KR-KR} Rc7 ({Black should try} 53... b5 $11) 54. Ke3 Kc8 55. Rd6 Rb7 {[#]} (55... Rc4 $11 {remains equal.}) 56. b3 $1 $16 Kc7 ({Black should play} 56... h5 $1 $14) 57. Re6 {White is more active.} Kd7 58. h5 Rb8 {[#]} ({Better is} 58... b5) 59. Kf4 $1 {aiming for e5.} Rb7 $2 {This move loses the game for Black.} (59... b5 $16) 60. e5 $18 fxe5+ 61. Kxe5 b5 62. Ra6 bxa4 63. bxa4 Ke7 64. Rxa5 Rb1 $2 (64... Kd7 65. Kd5 Ke7) 65. Ra7+ Kf8 66. a5 Re1+ 67. Kd6 Rd1+ 68. Kc6 Rc1+ 69. Kb6 {Black must now prevent Rd7.} Rf1 (69... Rb1+ $142 70. Kc5 Rh1) 70. Rc7 {a6 would kill now.} Rb1+ 71. Ka7 Rb5 72. a6 {[%cal Ba5a6,Ba6a7][%mdl 32]} Ke8 73. Rb7 Rxf5 74. Kb8 Rd5 75. a7 {Weighted Error Value: White=0.16 (very precise) /Black=0.23 (precise)} 1-0

[Event "15th Paleochora Open 2022"]
[Site "Paleochora"]
[Date "2022.07.20"]
[Round "5.14"]
[White "Alexiadis, Hristos"]
[Black "Fantinel, Thibault"]
[Result "1-0"]
[ECO "E11"]
[WhiteElo "2283"]
[BlackElo "2406"]
[Annotator "TA"]
[PlyCount "101"]
[EventDate "2022.07.17"]
[EventType "swiss"]
[EventCountry "GRE"]
[SourceTitle "playchess.com"]
[Source "ChessBase"]
[SourceQuality "1"]
[TimeControl "40/5400+30:900+30"]

{[%evp 13,101,0,17,9,18,14,19,8,8,-4,-3,-22,2,-15,37,31,60,38,39,37,41,20,26,33,53,55,126,152,125,119,127,127,192,91,83,83,89,89,220,126,117,52,62,50,80,76,95,87,88,68,68,68,121,116,116,116,115,130,165,104,121,111,102,109,123,131,221,162,233,227,207,56,56,56,56,56,260,260,592,570,1729,1845,1889,1889,1605,1314,29997,29996,29998,29999]} 1. d4 Nf6 2. Nf3 d5 3. c4 e6 4. g3 Bb4+ 5. Bd2 Be7 6. Bg2 O-O 7. O-O Nbd7 8. Qc2 {E11: Bogo-Indian.} Ne4 9. Bc1 c6 10. Nbd2 {The position is equal.} f5 11. b3 a5 {[#]} 12. a3 $146 ({Predecessor:} 12. a4 Bb4 13. Ba3 Qe7 14. Bxb4 axb4 15. Rac1 b6 16. Ne1 Ba6 17. Nd3 Rac8 18. Rfe1 {0-1 (38) Pedersen,C (2405)-Azarov,S (2570) Philadelphia 2018}) 12... Qe8 13. Ne1 Nxd2 (13... Bf6 $11) 14. Bxd2 $14 Qh5 15. Bf3 Qf7 16. Nd3 {Inhibits e5.} Bf6 17. Bc3 b6 18. b4 {[%cal Bb3b4,Bb4b5][%mdl 32]} Ba6 19. b5 dxc4 ({Better is} 19... Bb7 $14) 20. bxa6 $16 {White is more active.} cxd3 21. Qxd3 Rfc8 22. Rac1 b5 (22... Nb8 $16) 23. Bxa5 (23. Bd2 $18 Rxa6 24. a4) 23... Rxa6 24. Bb4 {[%cal Od4d5] aiming for d5! This bishop pair is nice.} Be7 25. d5 {Black must now prevent dxe6.} Bxb4 (25... Ne5 $16 26. Qxb5 cxb5 27. Rxc8+ Bf8) 26. axb4 ({Weaker is} 26. dxe6 Qxe6 $1 27. axb4 Ne5 $14) (26. dxc6 $18 Ne5 27. Qxb5 Rxa3 28. Qxe5 (28. Qxb4 Ra7 $18)) 26... Ne5 {[#]} 27. dxe6 (27. Qxb5 $1 $16 {[%mdl 512]} cxb5 28. Rxc8+ Qf8 29. Rxf8+ Kxf8 30. dxe6) 27... Qxe6 $14 28. Qd4 {[%cal Of3d5]} Nxf3+ 29. exf3 Re8 30. Rc5 h6 31. f4 Qe4 32. Qd7 Raa8 (32... Rf8 $14) 33. Qxc6 $16 (33. Rxf5 $6 Rad8 34. Qf7+ Kh7 $14) 33... Qxc6 34. Rxc6 {[%mdl 4096] Endgame KRR-KRR} Re4 35. Rb1 Ra4 36. Rc5 (36. Rd1 $18) 36... Rexb4 37. Rxb4 Rxb4 38. Rxf5 {KR-KR} Kh7 39. Kg2 Kg6 {[#]} (39... Rb3 $16 {was worth a try.} 40. h4 g6 41. Rf7+ Kg8) 40. Rf8 $1 $18 Rc4 (40... Kh7 {might work better.} 41. f5 g5) 41. f5+ Kh7 42. f3 $2 ({White should play} 42. Rb8 $18) 42... Rc2+ $14 43. Kh3 {Hoping for g4.} Rf2 $1 44. f4 {[%cal Bf3f4,Bf4g5,Bg5g6][%mdl 32]} ({Much less strong is} 44. Rb8 Rxf3 45. Rxb5 Rf2 $16) 44... b4 $2 (44... h5 $14) 45. Rb8 $18 Rb2 $2 {[#]} (45... b3 {is more resistant.} 46. Rxb3 Kg8) 46. g4 $1 {g5 is the strong threat.} b3 47. Kg3 Rb1 48. g5 hxg5 49. fxg5 {Threatening mate with g6+.} b2 50. g6+ Kh6 51. Kh4 {Weighted Error Value: White=0.17 (very precise) /Black=0.53} 1-0

[Event "15th Paleochora Open 2022"]
[Site "Paleochora"]
[Date "2022.07.20"]
[Round "5.15"]
[White "Barrish, Daniel"]
[Black "Maltsevskaya, Aleksandra"]
[Result "0-1"]
[ECO "E73"]
[WhiteElo "2283"]
[BlackElo "2378"]
[Annotator "TA"]
[PlyCount "58"]
[EventDate "2022.07.17"]
[EventType "swiss"]
[EventCountry "GRE"]
[SourceTitle "playchess.com"]
[Source "ChessBase"]
[SourceQuality "1"]
[TimeControl "40/5400+30:900+30"]

{[%evp 12,58,37,52,65,75,79,15,52,40,45,60,46,27,27,24,25,28,21,14,12,-12,-11,-11,-11,-11,-13,-365,-363,-345,-369,-485,-473,-449,-352,-518,-513,-473,-287,-1021,-1004,-1910,-6293,-5593,-5501,-2751,-2614,-29989,-29990]} 1. d4 Nf6 2. c4 g6 3. Nc3 Bg7 4. e4 d6 5. Be2 O-O 6. Be3 e5 7. d5 Ne8 {E73: King's Indian: Averbakh Variation without 6...c5.} 8. g4 f5 9. h4 {[#]} (9. gxf5 $16 gxf5 10. exf5) 9... fxg4 $146 {The position is equal.} ({Predecessor:} 9... Na6 10. g5 Nc5 11. f3 a5 12. a3 Bd7 13. b4 axb4 14. axb4 Rxa1 15. Qxa1 Nb3 {0-1 (28) Luba,L (2212)-Szadkowski,K (2296) Poronin 2020}) 10. Bxg4 Bxg4 11. Qxg4 {Black must now prevent h5.} Nf6 {Prevents h5.} 12. Qg2 Nh5 13. Nh3 Nd7 (13... Qxh4 $2 14. Ng5 Qxh1+ 15. Qxh1 $18) 14. Ng5 Nf4 15. Bxf4 exf4 16. h5 (16. Ne6 $5 {[%cal Re6d8]} f3 17. Qg5 Qxg5 18. hxg5 $11) 16... Bxc3+ 17. bxc3 {Hoping for hxg6.} Qf6 18. Qh3 Qxg5 19. hxg6 $4 {[%mdl 8192] Now White is beyond hope.} (19. Qxd7 $11 Rae8 20. hxg6 Rxe4+ 21. Kd2) 19... Nf6 $19 ({Inferior is} 19... Qxg6 20. Qxd7 Rf7 21. Qe6 $11) 20. gxh7+ Kh8 21. O-O-O f3+ 22. Kc2 {Threatens to win with Rdg1.} Qg4 23. Qh6 (23. Rde1 {was necessary.}) 23... Qxe4+ 24. Kb3 b5 {[%cal Bb7b5,Bb5b4][%mdl 32]} 25. Rdg1 (25. cxb5 Ng4 26. Qh4) 25... Ng4 (25... Rf7 $2 {[#] leads to mate.} 26. Rg8+ $1 {[%mdl 512]} Nxg8 27. hxg8=Q+ Kxg8 28. Qh8#) 26. Qg5 Qxc4+ 27. Kb2 {[#]} Rae8 $1 28. Re1 b4 {( -> ...Rxe1)} 29. Re7 Rxe7 {Weighted Error Value: White=1.24/Black=0.18 (very precise)} 0-1

[Event "15th Paleochora Open 2022"]
[Site "Paleochora"]
[Date "2022.07.20"]
[Round "5.16"]
[White "Vingris, Mikelis"]
[Black "Khayrullin, Denis"]
[Result "1/2-1/2"]
[ECO "B90"]
[WhiteElo "1811"]
[BlackElo "2361"]
[Annotator "TA"]
[PlyCount "81"]
[EventDate "2022.07.17"]
[EventType "swiss"]
[EventCountry "GRE"]
[SourceTitle "playchess.com"]
[Source "ChessBase"]
[SourceQuality "1"]
[TimeControl "40/5400+30:900+30"]

{[%evp 21,81,18,25,26,12,14,7,0,0,0,0,0,0,-39,-37,-43,-27,-44,-41,-54,-50,-61,-53,-66,-72,-75,-75,-84,-99,-126,-110,-116,-74,-88,-81,-127,-67,-50,-33,-42,-29,-20,-36,-32,-47,-69,0,0,0,0,0,8,8,10,10,0,0,0,0,0,88,93]} 1. e4 c5 2. Nf3 d6 3. d4 cxd4 4. Nxd4 Nf6 5. Nc3 a6 6. Be3 e5 7. Nb3 Be7 8. f3 Be6 9. Qd2 h5 10. O-O-O Nbd7 11. Kb1 Rc8 $1 {[%mdl 4] outshines the older 11...b5.} 12. Nd5 {B90: Sicilian Najdorf: Unusual White 6th moves, 6 Be3 Ng4 and 6 Be3 e5.} Bxd5 13. exd5 Nb6 {Inhibits c4.} 14. Qa5 {The position is equal.} Qc7 15. c3 {Active counter play!} Bd8 {[%cal Be7d8,Bd8b6,Bb6a7][%mdl 32]} 16. Bxb6 Qxb6 17. Qxb6 Bxb6 18. Bd3 O-O {[#]} 19. Rhe1 $146 ({Predecessor:} 19. Bc2 Rfd8 20. Rhe1 h4 21. Rd2 g6 22. a3 Kg7 23. Ka2 Rc7 24. Nc1 Nh5 25. Bb3 {0-1 (60) Mehta,N (2011)-Aditya,M (2288) Bhopal 2017}) 19... g6 (19... Nxd5 20. Bf5 Ne3 21. Bxc8 (21. Rxd6 Rc6 $14) 21... Nxd1 22. Bxb7 $16) 20. Rd2 h4 ({Don't do} 20... Nxd5 21. Be4 Ne3 22. Bxb7 $16) 21. a4 Kg7 ({Don't take} 21... Nxd5 22. Be4 Ne3 23. Bxb7 $16) 22. a5 Ba7 23. Ka2 Rc7 ({Resist} 23... Nxd5 24. Be4 Ne3 25. Bxb7 $16) 24. c4 Nh5 25. Bf1 f5 26. Rc2 Nf6 27. Rd1 Rfc8 28. Ka3 ({White should try} 28. Kb1) 28... e4 ({Black should play} 28... b5 $17 {[%cal Rb5c4]} 29. axb6 Bxb6) 29. fxe4 $15 fxe4 30. Be2 {Against Ng4} Re8 31. Nd4 Bxd4 32. Rxd4 Re5 {[%cal Oe5d5] ...Rxd5! is the strong threat.} 33. Rcd2 Rg5 (33... g5 $15) 34. Bd1 $11 Re7 35. b4 h3 36. gxh3 e3 37. Re2 Rf5 38. Bc2 Rf2 39. Bd3 Re5 40. h4 Kf7 (40... Rf3 $11) 41. Kb2 {Weighted Error Value: White=0.08 (flawless) /Black=0.12 (very precise)} 1/2-1/2

[Event "15th Paleochora Open 2022"]
[Site "Paleochora"]
[Date "2022.07.20"]
[Round "5.17"]
[White "Giannoulakis, Lampros"]
[Black "Demchenko, Svitlana"]
[Result "1/2-1/2"]
[ECO "D32"]
[WhiteElo "2346"]
[BlackElo "2122"]
[Annotator "TA"]
[PlyCount "85"]
[EventDate "2022.07.17"]
[EventType "swiss"]
[EventCountry "GRE"]
[SourceTitle "playchess.com"]
[Source "ChessBase"]
[SourceQuality "1"]
[TimeControl "40/5400+30:900+30"]

{[%evp 18,85,18,0,2,-11,6,12,11,0,24,29,22,12,5,10,8,8,10,0,0,0,12,7,6,0,5,-6,0,0,4,0,6,8,9,9,10,5,10,0,0,0,0,0,0,0,0,0,0,0,0,0,0,0,0,0,0,0,0,0,0,0,0,0,0,0,7,0,0,0]} 1. d4 d5 2. c4 e6 3. Nc3 c5 4. cxd5 exd5 5. Nf3 Nc6 6. Bg5 Be7 7. Bxe7 Ngxe7 8. dxc5 d4 {The main line 8...d4 scores better than 8...Qa5.} 9. Ne4 O-O 10. g3 Qd5 $1 {[%mdl 64] [#] Deflection. D32: Tarrasch Defence: Sidelines and lines without g3.} 11. Nd6 $146 ({Predecessor:} 11. Ned2 Qxc5 12. Bg2 Be6 13. O-O Qb5 14. Nb3 Rfd8 15. Ne1 a5 16. Nd3 b6 17. Nf4 Bxb3 18. Qxb3 Qxb3 19. axb3 {½-½ (54) Duda,J (2756)-Artemiev,V (2699) chess24.com INT 2021}) 11... Qxc5 {Strongly threatening ...Qb4+.} 12. Nxc8 Raxc8 13. Bg2 Qa5+ 14. Qd2 Rfd8 15. O-O {The position is equal.} Qxd2 16. Nxd2 d3 17. exd3 Rxd3 18. Nb3 b6 19. Rac1 g6 20. Rc4 Rdd8 21. Re1 Kf8 22. Rce4 Nd5 23. a3 Nf6 {Pair of Knights!} 24. Rf4 Rd6 25. Rc1 {[#] Hoping for Rfc4.} Ne7 {Threatens to win with ...Rxc1+.} 26. Rxc8+ Nxc8 27. Bf1 Ne7 28. Rc4 Rd1 29. Rc1 Rxc1 30. Nxc1 $11 {[%mdl 4096] Endgame KBN-KNN} Nf5 31. f3 Ke7 32. Bc4 Nd7 33. Nd3 f6 34. Bg8 Kd6 35. Kf2 (35. Bxh7 Ne7 $17) 35... Ne7 36. Ba2 ({Don't play} 36. Bxh7 Nf8 37. Bxg6 Nexg6 $17) 36... Nc5 37. Nxc5 Kxc5 {KB-KN} 38. Ke3 a5 39. Ke4 Nf5 40. Bg8 h6 41. Kd3 b5 42. f4 Nd6 43. Be6 {An interesting draw.  Weighted Error Value: White=0.03 (flawless) /Black=0.02 (flawless)} 1/2-1/2

[Event "15th Paleochora Open 2022"]
[Site "Paleochora"]
[Date "2022.07.20"]
[Round "5.18"]
[White "Schmit, Vincent"]
[Black "Banikas, Hristos"]
[Result "0-1"]
[ECO "B85"]
[WhiteElo "2146"]
[BlackElo "2598"]
[Annotator "TA"]
[PlyCount "82"]
[EventDate "2022.07.17"]
[EventType "swiss"]
[EventCountry "GRE"]
[SourceTitle "playchess.com"]
[Source "ChessBase"]
[SourceQuality "1"]
[TimeControl "40/5400+30:900+30"]

{[%evp 19,82,9,27,-20,-10,-22,-18,-17,-13,-12,-16,-18,-6,-68,4,-22,-20,-22,-10,-25,-13,-23,-14,-13,13,-19,-14,-12,-20,-50,-38,-43,-39,-39,-39,-48,-44,-140,-125,-184,-184,-182,-182,-200,-201,-252,-250,-247,-251,-250,-171,-328,-322,-321,-323,-315,-309,-1663,-1643,-1643,-1615,-1542,-1410,-547,-321]} 1. e4 c5 2. Nf3 e6 3. d4 cxd4 4. Nxd4 Nc6 5. Nc3 Qc7 6. Be2 a6 7. O-O Nf6 8. Be3 Be7 9. f4 d6 10. Bf3 O-O 11. g4 {B85: Sicilian Scheveningen: 6 Be2 a6, lines with early Be3.} (11. Nxc6 $142 bxc6 12. g3) 11... Nxd4 $11 12. Qxd4 e5 13. Qd1 {The position is equal.} exf4 14. Bxf4 Be6 15. Kh1 Nd7 {[#]} 16. Qd4 $146 (16. Nd5 $11 Bxd5 17. Qxd5) ({Predecessor:} 16. Nd5 Bxd5 17. exd5 Bf6 18. c3 Be5 19. Be4 Rae8 20. Qd3 g6 21. Bh6 Nc5 22. Qf3 Nxe4 {1-0 (35) Kapusta,P (2158)-Stancik,J (2096) Vsetin 2019}) 16... Rfc8 ({Black should play} 16... Rac8 $15) 17. g5 Qc5 18. Rad1 Ne5 19. Be2 b5 20. Rd2 Nc4 21. Bxc4 Qxc4 22. Re1 Bd8 23. a3 ({Don't blunder} 23. Qxd6 $2 Bc7 24. Qd3 Bxf4 $19) 23... Ba5 (23... Qxd4 {feels hotter.} 24. Rxd4 Ba5 25. Rd3 Bxc3 26. bxc3 Rc5) 24. Bxd6 (24. Qxc4 {looks sharper.} Rxc4 25. Re3 Bc8 26. Kg2) 24... Bxc3 25. bxc3 Qxc3 26. Qxc3 Rxc3 27. Be5 Rc5 28. Red1 h6 $17 29. Rd8+ (29. Bd4 $17 {might work better.} Rxg5 30. Rg2) 29... Rxd8 $19 30. Rxd8+ {[%mdl 4096] Endgame KRB-KRB} Kh7 31. Bd4 Rxg5 ({Weaker is} 31... Rxc2 32. gxh6 Kxh6 33. Kg1) 32. Ra8 Rg4 33. Rxa6 Rxe4 34. c3 Re2 35. Rb6 $2 {[#]} (35. Kg1 {was worth a try.}) 35... Bd5+ $1 36. Kg1 Rg2+ 37. Kf1 Rxh2 38. Rxb5 $2 (38. Bf2) 38... Bc4+ {Black is clearly winning.} 39. Kg1 Bxb5 40. Kxh2 g5 41. Kg3 Kg6 {Weighted Error Value: White=0.52/Black=0.10 (very precise)} 0-1

[Event "15th Paleochora Open 2022"]
[Site "Paleochora"]
[Date "2022.07.21"]
[Round "6.1"]
[White "Hamitevici, Vladimir"]
[Black "Kourkoulos-Arditis, Stamatis"]
[Result "1-0"]
[ECO "E70"]
[WhiteElo "2473"]
[BlackElo "2535"]
[Annotator "TA"]
[PlyCount "95"]
[EventDate "2022.07.17"]
[EventType "swiss"]
[EventCountry "GRE"]
[SourceTitle "playchess.com"]
[Source "ChessBase"]
[SourceQuality "1"]
[TimeControl "40/5400+30:900+30"]

{[%evp 17,95,21,28,21,21,21,21,0,0,-21,-19,-15,-13,-17,-21,-22,-23,-12,-30,-22,51,-27,39,47,39,43,27,10,25,11,26,18,28,-7,0,-16,-8,-8,-3,-4,0,0,0,0,0,0,9,-9,26,31,33,58,97,140,155,158,264,241,547,260,222,0,536,540,542,543,517,531,445,420,752,751,743,735,1006,964,1217,1214,1115,1072]} 1. d4 Nf6 2. c4 g6 3. Nc3 Bg7 4. e4 d6 5. Nge2 O-O 6. Ng3 e5 7. d5 a5 8. Be2 Na6 9. h4 h5 $1 10. Bg5 {[%cal Re2h5] Strongly threatening Bxh5! E70: King's Indian: Miscellaneous lines with 4 e4, including 5 Nge2 and 5 Bd3 0-0 6 Nge2.} Qe8 11. Qd2 Nc5 12. O-O-O {The position is equal.} Ng4 13. Bxg4 Bxg4 14. f3 Bd7 15. Kb1 {[#]} a4 $146 ({Predecessor:} 15... Kh7 16. Rdg1 f5 17. exf5 gxf5 18. Be3 Qg6 19. Bxc5 Bh6 20. Be3 Bxe3 21. Qxe3 Qxg3 {½-½ (31) Miletic,V (2157)-Kovacevic,N (2022) Niksic 2021}) 16. Bh6 {[%cal Og3h5]} Qe7 {[%cal Ob7b5]} 17. Bg5 f6 18. Be3 Qf7 ({Black should try} 18... b6 $11) 19. Rhf1 (19. Bxc5 $14 dxc5 20. a3) 19... f5 (19... b6 $11) 20. Bxc5 $14 dxc5 21. exf5 gxf5 22. Qg5 {d6 is the strong threat.} (22. d6 {with more complications.} cxd6 23. Qg5 Ra6 24. Nxh5 Kh7 25. Nxg7 Qxg7 26. Qh5+) 22... Kh7 {And now ...Bh6 would win.} 23. Qxh5+ ({Not} 23. Nxh5 $2 Bh6 24. Qg3 f4 $19) 23... Qxh5 24. Nxh5 Bh8 $1 25. Rde1 {[%cal Oh5f4]} a3 26. g4 fxg4 27. fxg4 Bxg4 28. Ng3 axb2 {[%cal Oe5e4]} 29. Nge4 Rf4 30. Kxb2 Kh6 31. Kb3 Ra6 32. Na4 {Prevents Rb6+.} Bf5 {White must now prevent ...Rxf1.} 33. Naxc5 Rb6+ 34. Kc3 Rg6 {Threatens to win with ...b6.} 35. Ng5 {Pair of Knights!} Kh5 36. Nce6 {Dancing on a razor blade. White is more active.} Rxf1 (36... Bxe6 $16 37. Nxe6 Rg3+ 38. Kb4 Rxf1 39. Rxf1 e4) 37. Rxf1 $18 Kg4 (37... Rf6 {is tougher.} 38. Nxc7 Kxh4) 38. Rg1+ (38. h5 $142 e4+ 39. Kd2) 38... Kh5 39. Rf1 $2 ({Don't do} 39. Nxc7 $6 e4+ 40. Kb4 Be5 $16) (39. c5) 39... Kg4 $1 40. Nf7 Bxe6 41. Nxh8 {[%mdl 4096] Endgame KRB-KRN} Rh6 {[#]} 42. Ng6 $1 {[%mdl 512]} Bc8 43. Nxe5+ Kxh4 (43... Kg3 $142 44. Rf3+ Kxh4) 44. Rh1+ {White is clearly winning.} Bh3 45. Nf3+ Kg3 46. Ng1 Kg2 47. Rxh3 Ra6 {[#]} 48. Rh7 $1 {Weighted Error Value: White=0.24 (precise) /Black=0.24 (precise)} 1-0